[Event "36th Zalakaros Festival 2017"]
[Site "Zalakaros"]
[Date "2017.05.26"]
[Round "9"]
[White "Paschall, William M"]
[Black "Krykun, Yuriy"]
[Result "1/2-1/2"]
[ECO "A37"]
[WhiteElo "2380"]
[BlackElo "2308"]
[Annotator "NA"]
[PlyCount "60"]
[EventDate "2017.??.??"]
[EventType "swiss"]
[EventCountry "HUN"]
[SourceTitle "playchess.com"]
[Source "ChessBase"]
[SourceQuality "1"]
[TimeControl "40/5400+30:1800+30"]

1. Nf3 {[%emt 0:00:33]} c5 {[%emt 0:01:23]} 2. c4 {[%emt 0:01:14]} Nc6 {[%emt 0:00:22]} 3. Nc3 {[%emt 0:01:03]} g6 {[%emt 0:00:17]} 4. g3 {[%emt 0:02:43]} Bg7 {[%emt 0:01:59]} 5. Bg2 {[%emt 0:00:40]} e6 {[%emt 0:00:27]} 6. O-O {[%emt 0:02:03]} Nge7 {[%emt 0:00:03]} 7. d3 {[%emt 0:03:39]} O-O {[%emt 0:00:46]} 8. Bd2 {[%emt 0:00:51]} b6 {[%emt 0:01:08]} 9. a3 {[%emt 0:03:16]} d5 {[%emt 0:00:44]} 10. Rb1 {[%emt 0:02:11]} a5 {[%emt 0:07:36]} 11. Nb5 {[%emt 0:06:38]} Ba6 {[%emt 0:02:11]} 12. Qb3 {[%emt 0:21:30]} Nf5 {[%emt 0:10:51]} 13. e3 {[%emt 0:03:25]} Rb8 {[%emt 0:03:03]} 14. Rfd1 {[%emt 0:03:43]} Qd7 {[%emt 0:05:47]} 15. Bc3 {[%emt 0:07:40]} d4 {[%emt 0:03:38]} 16. exd4 {[%emt 0:00:32]} Ncxd4 {[%emt 0:00:53]} 17. Bxd4 {[%emt 0:01:46]} Nxd4 {[%emt 0:00:58]} 18. Nfxd4 {[%emt 0:00:22]} Bxd4 {[%emt 0:00:09]} 19. Nxd4 {[%emt 0:00:50]} Qxd4 {[%emt 0:00:04]} 20. Qc3 {[%emt 0:01:15]} Rfd8 {[%emt 0:08:08]} 21. Bf1 {[%emt 0:05:59]} Qg4 {[%emt 0:06:58]} 22. b4 {[%emt 0:02:12]} axb4 {[%emt 0:00:46]} 23. axb4 {[%emt 0:00:07]} Bb7 {[%emt 0:00:29]} 24. Bg2 {[%emt 0:00:20]} Bxg2 {[%emt 0:05:05]} 25. Kxg2 {[%emt 0:00:33]} Qf5 {[%emt 0:01:42]} 26. bxc5 {[%emt 0:01:38]} bxc5 {[%emt 0:00:26]} 27. Rxb8 {[%emt 0:01:42]} Rxb8 {[%emt 0:01:52]} 28. Re1 {[%emt 0:00:52]} Rd8 {[%emt 0:01:17]} 29. Re3 {[%emt 0:05:12]} Rd4 {[%emt 0:03:47]} 30. Qa5 {[%emt 0:02:33]} Rxd3 {[%emt 0:04:47]} 1/2-1/2